[Event "EYCC Girls-U16 2019"]
[Site "Bratislava"]
[Date "2019.08.07"]
[Round "6.23"]
[White "Radikovic, Anamarija"]
[Black "Sleurs, Juliette"]
[Result "1/2-1/2"]
[ECO "D02"]
[WhiteElo "2021"]
[BlackElo "1834"]
[Annotator "NA"]
[PlyCount "83"]
[EventDate "2019.08.02"]
[EventType "swiss"]
[EventCountry "SVK"]
[SourceTitle "playchess.com"]
[Source "ChessBase"]
[SourceQuality "1"]
[TimeControl "40/5400+30:1800+30"]

1. Nf3 {[%emt 0:00:00]} d5 {[%emt 0:00:00]} 2. d4 {[%emt 0:00:00]} Nf6 {[%emt 0:00:00]} 3. Bf4 {[%emt 0:00:00]} Bf5 {[%emt 0:00:51]} 4. Nbd2 {[%emt 0:01:15]} e6 {[%emt 0:00:27]} 5. e3 {[%emt 0:02:17]} Bd6 {[%emt 0:01:08]} 6. Bg3 {[%emt 0:01:10]} h6 {[%emt 0:00:33]} 7. Ne5 {[%emt 0:04:03]} O-O {[%emt 0:05:11]} 8. Be2 c5 {[%emt 0:06:15]} 9. c3 {[%emt 0:26:53]} Nc6 {[%emt 0:06:42]} 10. f4 {[%emt 0:01:38]} Ne4 {[%emt 0:05:50]} 11. Nxe4 {[%emt 0:00:52]} Bxe4 {[%emt 0:00:42]} 12. O-O {[%emt 0:02:22]} Nxe5 {[%emt 0:04:06]} 13. fxe5 {[%emt 0:00:51]} Be7 {[%emt 0:00:27]} 14. Bd3 {[%emt 0:05:59]} Bxd3 {[%emt 0:01:59]} 15. Qxd3 {[%emt 0:00:06]} c4 {[%emt 0:07:59]} 16. Qe2 {[%emt 0:00:31]} b5 {[%emt 0:01:07]} 17. Rf3 {[%emt 0:03:19]} Rb8 {[%emt 0:06:43]} 18. Raf1 {[%emt 0:02:37]} b4 {[%emt 0:03:22]} 19. e4 {[%emt 0:02:41]} bxc3 {[%emt 0:07:02]} 20. bxc3 {[%emt 0:00:06]} Rb7 {[%emt 0:09:34]} 21. Bf4 {[%emt 0:14:42]} f5 {[%emt 0:06:25]} 22. exf5 {[%emt 0:04:44]} Rxf5 {[%emt 0:00:18]} 23. Be3 {[%emt 0:01:36]} Rxf3 {[%emt 0:01:20]} 24. Qxf3 {[%emt 0:00:07]} Bg5 {[%emt 0:02:06]} 25. Bf2 {[%emt 0:04:27]} Rf7 {[%emt 0:05:34]} 26. Qe2 {[%emt 0:07:30]} Bh4 {[%emt 0:03:33]} 27. Qg4 {[%emt 0:05:09]} Bxf2+ {[%emt 0:03:20]} 28. Rxf2 {[%emt 0:00:06]} Qb6 {[%emt 0:01:05]} 29. Rxf7 {[%emt 0:01:56]} Kxf7 {[%emt 0:00:06]} 30. Qf4+ {[%emt 0:00:11]} Kg6 {[%emt 0:02:19]} 31. Qc1 {[%emt 0:01:46]} Qb7 {[%emt 0:02:58]} 32. Qc2+ {[%emt 0:00:52]} Kf7 {[%emt 0:00:37]} 33. h3 {[%emt 0:02:17]} a5 {[%emt 0:01:41]} 34. Kh2 {[%emt 0:02:24]} Kg8 {[%emt 0:01:30]} 35. Qa4 {[%emt 0:00:34]} Qf7 {[%emt 0:01:51]} 36. Kg1 {[%emt 0:01:55]} Qf4 {[%emt 0:01:27]} 37. Qxa5 {[%emt 0:00:47]} Qe3+ {[%emt 0:00:50]} 38. Kf1 {[%emt 0:00:05]} Qc1+ {[%emt 0:00:25]} 39. Kf2 {[%emt 0:00:07]} Qf4+ {[%emt 0:00:41]} 40. Kg1 {[%emt 0:00:00]} Qe3+ {[%emt 0:00:00]} 41. Kh1 {[%emt 0:00:22]} Qc1+ {[%emt 0:00:45]} 42. Kh2 {[%emt 0:01:32]} 1/2-1/2

[Event "EYCC Girls-U16 2019"]
[Site "Bratislava"]
[Date "2019.08.07"]
[Round "6.24"]
[White "Pipia, Ekaterine"]
[Black "Rzali, Sabina"]
[Result "1/2-1/2"]
[ECO "A06"]
[WhiteElo "1945"]
[BlackElo "1691"]
[Annotator "NA"]
[PlyCount "214"]
[EventDate "2019.08.02"]
[EventType "swiss"]
[EventCountry "SVK"]
[SourceTitle "playchess.com"]
[Source "ChessBase"]
[SourceQuality "1"]
[TimeControl "40/5400+30:1800+30"]

1. Nf3 {[%emt 0:00:00]} d5 {[%emt 0:00:00]} 2. e3 {[%emt 0:00:00]} Nf6 {[%emt 0:00:00]} 3. c4 {[%emt 0:00:00]} e6 {[%emt 0:00:00]} 4. b3 {[%emt 0:00:00]} c5 {[%emt 0:00:00]} 5. Bb2 {[%emt 0:00:00]} Bd6 {[%emt 0:00:32]} 6. Nc3 {[%emt 0:00:17]} Nc6 {[%emt 0:00:45]} 7. cxd5 {[%emt 0:03:28]} exd5 {[%emt 0:00:12]} 8. d4 {[%emt 0:00:08]} cxd4 {[%emt 0:00:56]} 9. Nxd4 {[%emt 0:00:06]} O-O {[%emt 0:01:15]} 10. Be2 {[%emt 0:01:39]} Re8 {[%emt 0:00:34]} 11. O-O {[%emt 0:07:09]} Nxd4 {[%emt 0:02:03]} 12. Qxd4 {[%emt 0:00:06]} Be5 {[%emt 0:00:13]} 13. Qd3 {[%emt 0:00:17]} g6 {[%emt 0:13:15]} 14. Rfd1 {[%emt 0:06:12]} Bf5 {[%emt 0:04:16]} 15. Qd2 {[%emt 0:02:09]} Qa5 {[%emt 0:15:09]} 16. Ne4 {[%emt 0:09:05]} Qxd2 {[%emt 0:02:47]} 17. Nxf6+ {[%emt 0:00:07]} Bxf6 {[%emt 0:00:19]} 18. Rxd2 {[%emt 0:00:05]} Bxb2 {[%emt 0:00:19]} 19. Rxb2 {[%emt 0:00:05]} Rad8 {[%emt 0:11:18]} 20. Rd1 {[%emt 0:00:39]} Re7 {[%emt 0:01:07]} 21. Rbd2 {[%emt 0:00:56]} Red7 {[%emt 0:02:42]} 22. Bb5 {[%emt 0:05:22]} Rd6 {[%emt 0:04:17]} 23. Rd4 {[%emt 0:04:51]} a6 {[%emt 0:15:57]} 24. Bc4 {[%emt 0:04:33]} Be6 {[%emt 0:01:42]} 25. e4 {[%emt 0:03:10]} b5 {[%emt 0:01:56]} 26. Bxd5 {[%emt 0:00:56]} Bxd5 {[%emt 0:00:49]} 27. exd5 {[%emt 0:03:38]} Kf8 {[%emt 0:01:40]} 28. f3 {[%emt 0:01:24]} Rc8 {[%emt 0:01:57]} 29. R1d2 {[%emt 0:01:44]} Ke7 {[%emt 0:00:19]} 30. Re2+ {[%emt 0:04:03]} Kf8 {[%emt 0:00:58]} 31. Kf2 {[%emt 0:00:48]} Rcd8 {[%emt 0:00:53]} 32. Red2 {[%emt 0:00:24]} Ke7 {[%emt 0:00:38]} 33. Ke3 {[%emt 0:03:53]} R6d7 {[%emt 0:01:09]} 34. Kf4 {[%emt 0:00:50]} Rd6 {[%emt 0:01:50]} 35. Ke5 {[%emt 0:05:29]} Kd7 {[%emt 0:02:33]} 36. Rc2 {[%emt 0:07:50]} Re8+ {[%emt 0:01:41]} 37. Kf4 {[%emt 0:00:11]} Rf6+ {[%emt 0:01:23]} 38. Kg3 {[%emt 0:03:36]} Rd6 {[%emt 0:02:00]} 39. Rd3 {[%emt 0:01:16]} Re5 {[%emt 0:01:39]} 40. Rc5 {[%emt 0:00:00]} Re2 {[%emt 0:00:00]} 41. a4 {[%emt 0:02:16]} bxa4 {[%emt 0:02:07]} 42. bxa4 {[%emt 0:00:09]} Rb6 {[%emt 0:05:47]} 43. d6 {[%emt 0:09:15]} Rxd6 {[%emt 0:02:14]} 44. Rxd6+ {[%emt 0:00:06]} Kxd6 {[%emt 0:00:02]} 45. Ra5 {[%emt 0:00:08]} Ra2 {[%emt 0:01:07]} 46. Rxa6+ {[%emt 0:00:07]} Ke5 {[%emt 0:00:21]} 47. Ra5+ {[%emt 0:00:36]} Ke6 {[%emt 0:00:43]} 48. h4 {[%emt 0:00:34]} f5 {[%emt 0:04:56]} 49. Ra7 {[%emt 0:02:01]} Kf6 {[%emt 0:02:33]} 50. a5 {[%emt 0:01:08]} Ra4 {[%emt 0:00:38]} 51. a6 {[%emt 0:00:37]} h6 {[%emt 0:00:42]} 52. Ra8 {[%emt 0:01:25]} Kg7 {[%emt 0:01:23]} 53. a7 {[%emt 0:00:38]} h5 {[%emt 0:01:47]} 54. Kf2 {[%emt 0:00:21]} Ra2+ {[%emt 0:00:48]} 55. Ke3 {[%emt 0:00:11]} Ra4 {[%emt 0:00:27]} 56. Kd3 {[%emt 0:00:16]} Kh7 {[%emt 0:00:32]} 57. Kc3 {[%emt 0:00:09]} Kg7 {[%emt 0:00:17]} 58. Kb3 {[%emt 0:00:05]} Ra1 {[%emt 0:00:13]} 59. Kc4 {[%emt 0:01:19]} Ra2 {[%emt 0:02:00]} 60. Kd5 {[%emt 0:00:16]} Ra1 {[%emt 0:02:29]} 61. Ke5 {[%emt 0:00:55]} Ra4 {[%emt 0:01:10]} 62. Ke6 {[%emt 0:00:23]} Ra6+ {[%emt 0:01:21]} 63. Ke5 {[%emt 0:03:26]} Ra4 {[%emt 0:00:07]} 64. g3 {[%emt 0:00:28]} f4 {[%emt 0:03:16]} 65. gxf4 {[%emt 0:09:13]} Ra5+ {[%emt 0:00:22]} 66. Ke6 {[%emt 0:00:49]} Ra6+ {[%emt 0:00:22]} 67. Ke7 {[%emt 0:00:18]} Ra1 {[%emt 0:00:30]} 68. f5 {[%emt 0:01:32]} gxf5 {[%emt 0:00:15]} 69. Kd6 {[%emt 0:00:17]} Ra5 {[%emt 0:01:43]} 70. f4 {[%emt 0:02:13]} Kh7 {[%emt 0:02:44]} 71. Ke6 {[%emt 0:00:46]} Kg7 {[%emt 0:00:09]} 72. Re8 {[%emt 0:00:43]} Ra6+ {[%emt 0:01:11]} 73. Kxf5 {[%emt 0:00:07]} Rxa7 {[%emt 0:00:01]} 74. Kg5 {[%emt 0:00:19]} Ra1 {[%emt 0:00:49]} 75. Re7+ {[%emt 0:00:50]} Kg8 {[%emt 0:00:16]} 76. Re6 {[%emt 0:02:00]} Kf7 {[%emt 0:00:42]} 77. Rf6+ {[%emt 0:00:39]} Kg7 {[%emt 0:00:04]} 78. Rg6+ {[%emt 0:00:13]} Kf7 {[%emt 0:00:14]} 79. Rh6 {[%emt 0:01:54]} Rf1 {[%emt 0:01:15]} 80. Rxh5 {[%emt 0:00:24]} Kg7 {[%emt 0:00:39]} 81. Kf5 {[%emt 0:00:18]} Ra1 {[%emt 0:00:17]} 82. Rg5+ {[%emt 0:00:10]} Kh6 {[%emt 0:00:07]} 83. Rg8 {[%emt 0:01:17]} Ra5+ {[%emt 0:00:19]} 84. Kg4 {[%emt 0:00:15]} Ra1 {[%emt 0:00:10]} 85. Rh8+ {[%emt 0:02:50]} Kg7 {[%emt 0:00:28]} 86. Re8 {[%emt 0:00:33]} Rg1+ {[%emt 0:00:41]} 87. Kf5 {[%emt 0:01:04]} Rh1 {[%emt 0:00:11]} 88. Re7+ {[%emt 0:00:24]} Kg8 {[%emt 0:00:21]} 89. Kg6 {[%emt 0:00:53]} Rg1+ {[%emt 0:00:50]} 90. Kh5 {[%emt 0:01:36]} Rf1 {[%emt 0:00:21]} 91. Kg5 {[%emt 0:05:00]} Rg1+ {[%emt 0:00:07]} 92. Kf6 {[%emt 0:00:31]} Rg4 {[%emt 0:00:37]} 93. f5 {[%emt 0:00:13]} Rxh4 {[%emt 0:00:18]} 94. Re8+ {[%emt 0:00:18]} Kh7 {[%emt 0:00:05]} 95. Kf7 {[%emt 0:00:11]} Ra4 {[%emt 0:01:20]} 96. f6 {[%emt 0:01:04]} Ra7+ {[%emt 0:01:10]} 97. Re7 {[%emt 0:00:04]} Ra8 {[%emt 0:00:11]} 98. Rb7 {[%emt 0:03:55]} Rc8 {[%emt 0:02:20]} 99. Rb2 {[%emt 0:03:54]} Rc7+ {[%emt 0:00:50]} 100. Ke8 {[%emt 0:01:24]} Kg6 {[%emt 0:00:53]} 101. Rf2 {[%emt 0:00:07]} Rc8+ {[%emt 0:00:32]} 102. Ke7 {[%emt 0:00:25]} Rc7+ {[%emt 0:00:22]} 103. Ke8 {[%emt 0:00:36]} Rc8+ {[%emt 0:00:26]} 104. Kd7 {[%emt 0:00:05]} Ra8 {[%emt 0:00:55]} 105. f7 {[%emt 0:00:58]} Kg7 {[%emt 0:00:10]} 106. Ke7 {[%emt 0:00:33]} Ra7+ {[%emt 0:00:03]} 107. Ke8 {[%emt 0:00:08]} Ra8+ {[%emt 0:00:04]} 1/2-1/2

[Event "EYCC Girls-U16 2019"]
[Site "Bratislava"]
[Date "2019.08.08"]
[Round "7.1"]
[White "Waszczuk, Patrycja"]
[Black "Getman, Tatyana"]
[Result "1/2-1/2"]
[ECO "B90"]
[WhiteElo "2119"]
[BlackElo "2143"]
[Annotator "NA"]
[PlyCount "75"]
[EventDate "2019.08.02"]
[EventType "swiss"]
[EventCountry "SVK"]
[SourceTitle "playchess.com"]
[Source "ChessBase"]
[SourceQuality "1"]
[TimeControl "40/5400+30:1800+30"]

1. e4 {[%emt 0:00:00]} c5 {[%emt 0:00:00]} 2. Nf3 {[%emt 0:00:00]} d6 {[%emt 0:00:00]} 3. d4 {[%emt 0:00:00]} cxd4 {[%emt 0:00:00]} 4. Nxd4 {[%emt 0:00:00]} Nf6 {[%emt 0:00:00]} 5. Nc3 {[%emt 0:00:00]} a6 {[%emt 0:00:00]} 6. Be3 {[%emt 0:00:00]} e5 {[%emt 0:00:07]} 7. Nb3 {[%emt 0:00:00]} Be6 {[%emt 0:00:06]} 8. Qd2 {[%emt 0:00:05]} Nbd7 {[%emt 0:05:08]} 9. f4 {[%emt 0:00:50]} Rc8 {[%emt 0:03:39]} 10. O-O-O {[%emt 0:01:52]} b5 {[%emt 0:07:30]} 11. Kb1 {[%emt 0:01:09]} Be7 {[%emt 0:06:47]} 12. h3 {[%emt 0:00:05]} h5 {[%emt 0:03:59]} 13. a3 {[%emt 0:01:23]} Bc4 {[%emt 0:04:26]} 14. Be2 {[%emt 0:07:10]} Bxe2 {[%emt 0:02:49]} 15. Qxe2 {[%emt 0:00:35]} Rxc3 {[%emt 0:08:20]} 16. bxc3 {[%emt 0:00:05]} Nxe4 {[%emt 0:00:19]} 17. Qd3 {[%emt 0:00:02]} d5 {[%emt 0:06:17]} 18. Rhf1 {[%emt 0:06:28]} Qc7 {[%emt 0:02:43]} 19. Bd2 {[%emt 0:06:43]} Nb6 {[%emt 0:01:19]} 20. fxe5 {[%emt 0:05:28]} O-O {[%emt 0:03:48]} 21. Rf3 {[%emt 0:04:46]} Na4 {[%emt 0:07:02]} 22. Qxd5 {[%emt 0:01:45]} Nexc3+ {[%emt 0:00:59]} 23. Bxc3 {[%emt 0:00:22]} Nxc3+ {[%emt 0:00:04]} 24. Rxc3 {[%emt 0:00:04]} Qxc3 {[%emt 0:00:06]} 25. Rd3 {[%emt 0:00:04]} Qc4 {[%emt 0:02:48]} 26. Kb2 {[%emt 0:05:50]} Rc8 {[%emt 0:03:50]} 27. Qxc4 {[%emt 0:01:53]} Rxc4 {[%emt 0:03:33]} 28. Rd7 {[%emt 0:00:16]} Bh4 {[%emt 0:05:13]} 29. Nd2 {[%emt 0:02:20]} Rc5 {[%emt 0:03:07]} 30. Nf3 {[%emt 0:00:05]} Bg3 {[%emt 0:00:08]} 31. Ra7 {[%emt 0:01:30]} Bxe5+ {[%emt 0:02:23]} 32. Nxe5 {[%emt 0:00:06]} Rxe5 {[%emt 0:00:01]} 33. Ra8+ {[%emt 0:00:14]} Kh7 {[%emt 0:00:06]} 34. Rxa6 {[%emt 0:00:11]} g5 {[%emt 0:02:38]} 35. Ra5 {[%emt 0:04:46]} f6 {[%emt 0:00:12]} 36. Kc3 {[%emt 0:00:04]} Kg6 {[%emt 0:01:14]} 37. Kd3 {[%emt 0:00:56]} Kf5 {[%emt 0:03:13]} 38. a4 {[%emt 0:00:43]} 1/2-1/2

[Event "EYCC Girls-U16 2019"]
[Site "Bratislava"]
[Date "2019.08.08"]
[Round "7.2"]
[White "Krasteva, Beloslava"]
[Black "Lehaci, Miruna-Daria"]
[Result "1/2-1/2"]
[ECO "E45"]
[WhiteElo "2327"]
[BlackElo "2201"]
[Annotator "NA"]
[PlyCount "92"]
[EventDate "2019.08.02"]
[EventType "swiss"]
[EventCountry "SVK"]
[SourceTitle "playchess.com"]
[Source "ChessBase"]
[SourceQuality "1"]
[TimeControl "40/5400+30:1800+30"]

1. d4 {[%emt 0:00:00]} Nf6 {[%emt 0:00:00]} 2. c4 {[%emt 0:00:00]} e6 {[%emt 0:00:00]} 3. Nc3 {[%emt 0:00:06]} Bb4 {[%emt 0:00:00]} 4. e3 {[%emt 0:00:24]} b6 {[%emt 0:00:00]} 5. Nge2 {[%emt 0:00:29]} Ba6 {[%emt 0:00:00]} 6. Ng3 {[%emt 0:00:35]} O-O {[%emt 0:00:01]} 7. e4 {[%emt 0:00:47]} d6 {[%emt 0:00:04]} 8. Bg5 {[%emt 0:02:52]} h6 {[%emt 0:02:52]} 9. h4 {[%emt 0:01:42]} Nbd7 {[%emt 0:05:49]} 10. Rc1 {[%emt 0:05:17]} Re8 {[%emt 0:08:00]} 11. Be3 {[%emt 0:06:34]} c5 {[%emt 0:02:15]} 12. a3 {[%emt 0:01:47]} cxd4 {[%emt 0:09:54]} 13. Bxd4 {[%emt 0:00:52]} Bc5 {[%emt 0:01:19]} 14. Be2 {[%emt 0:06:51]} Rc8 {[%emt 0:13:46]} 15. Bxc5 {[%emt 0:04:37]} dxc5 {[%emt 0:01:03]} 16. Qd6 {[%emt 0:12:13]} Nb8 {[%emt 0:07:20]} 17. Qxd8 {[%emt 0:02:35]} Rexd8 {[%emt 0:01:00]} 18. e5 {[%emt 0:00:57]} Ne8 {[%emt 0:02:31]} 19. Nb5 {[%emt 0:04:30]} Nc6 {[%emt 0:01:23]} 20. f4 {[%emt 0:01:21]} Bb7 {[%emt 0:03:51]} 21. Bf3 {[%emt 0:03:14]} a6 {[%emt 0:06:39]} 22. Nc3 {[%emt 0:10:04]} Rc7 {[%emt 0:03:14]} 23. O-O {[%emt 0:02:17]} Nd4 {[%emt 0:02:39]} 24. Bxb7 {[%emt 0:01:20]} Rxb7 {[%emt 0:00:04]} 25. Nce4 {[%emt 0:14:30]} f5 {[%emt 0:01:36]} 26. Nc3 {[%emt 0:01:58]} g5 {[%emt 0:02:18]} 27. hxg5 {[%emt 0:01:55]} hxg5 {[%emt 0:00:03]} 28. fxg5 {[%emt 0:02:23]} Rg7 {[%emt 0:00:04]} 29. Nge2 {[%emt 0:02:41]} Rxg5 {[%emt 0:00:38]} 30. Nxd4 {[%emt 0:00:58]} cxd4 {[%emt 0:00:40]} 31. Ne2 {[%emt 0:02:28]} Rg4 {[%emt 0:05:06]} 32. Nf4 {[%emt 0:01:21]} Ng7 {[%emt 0:00:54]} 33. b4 {[%emt 0:01:56]} d3 {[%emt 0:00:26]} 34. c5 {[%emt 0:01:08]} d2 {[%emt 0:02:08]} 35. Rcd1 {[%emt 0:00:04]} bxc5 {[%emt 0:00:03]} 36. bxc5 {[%emt 0:00:06]} Rd4 {[%emt 0:00:19]} 37. Ne2 {[%emt 0:00:49]} Rc4 {[%emt 0:00:39]} 38. Rxd2 {[%emt 0:00:15]} Rxc5 {[%emt 0:00:04]} 39. Rd8+ {[%emt 0:01:49]} Kh7 {[%emt 0:00:05]} 40. Nf4 {[%emt 0:00:00]} Rxe5 {[%emt 0:00:00]} 41. Rf3 {[%emt 0:05:58]} Rh4 {[%emt 0:04:00]} 42. Rd7 {[%emt 0:02:38]} Re1+ {[%emt 0:08:39]} 43. Kf2 {[%emt 0:00:49]} Re4 {[%emt 0:00:05]} 44. g3 Rh6 45. Rc3 e5 46. Rf3 Rh4 1/2-1/2

[Event "EYCC Girls-U16 2019"]
[Site "Bratislava"]
[Date "2019.08.08"]
[Round "7.3"]
[White "Djidjeli, Sarah"]
[Black "Mkrtchyan, Mariam"]
[Result "0-1"]
[ECO "B15"]
[WhiteElo "2017"]
[BlackElo "1981"]
[Annotator "NA"]
[PlyCount "106"]
[EventDate "2019.08.02"]
[EventType "swiss"]
[EventCountry "SVK"]
[SourceTitle "playchess.com"]
[Source "ChessBase"]
[SourceQuality "1"]
[TimeControl "40/5400+30:1800+30"]

1. e4 {[%emt 0:00:00]} c6 {[%emt 0:00:00]} 2. d4 {[%emt 0:00:00]} d5 {[%emt 0:00:00]} 3. Nc3 {[%emt 0:00:00]} dxe4 {[%emt 0:00:00]} 4. Nxe4 {[%emt 0:00:00]} Nf6 {[%emt 0:00:00]} 5. Nxf6+ {[%emt 0:00:01]} exf6 {[%emt 0:00:00]} 6. c3 {[%emt 0:00:10]} Bd6 {[%emt 0:00:00]} 7. Bd3 {[%emt 0:00:14]} O-O {[%emt 0:00:00]} 8. Qc2 {[%emt 0:00:11]} Re8+ {[%emt 0:00:00]} 9. Ne2 {[%emt 0:00:09]} h6 {[%emt 0:00:01]} 10. Be3 {[%emt 0:00:23]} Qc7 {[%emt 0:00:09]} 11. h3 {[%emt 0:01:57]} Nd7 {[%emt 0:00:42]} 12. O-O {[%emt 0:02:16]} Nf8 {[%emt 0:01:52]} 13. c4 {[%emt 0:03:38]} Qa5 {[%emt 0:06:38]} 14. Qd2 {[%emt 0:19:47]} Qxd2 {[%emt 0:12:04]} 15. Bxd2 {[%emt 0:00:06]} Ne6 {[%emt 0:01:38]} 16. b4 {[%emt 0:14:39]} Bd7 {[%emt 0:03:03]} 17. c5 {[%emt 0:04:49]} Bf8 {[%emt 0:04:21]} 18. a4 {[%emt 0:03:43]} Nc7 {[%emt 0:05:23]} 19. Nc3 {[%emt 0:01:19]} Red8 {[%emt 0:07:37]} 20. Be3 {[%emt 0:03:45]} Be6 {[%emt 0:04:23]} 21. Rfb1 {[%emt 0:05:51]} f5 {[%emt 0:03:46]} 22. f4 {[%emt 0:03:01]} g5 {[%emt 0:05:44]} 23. Rf1 {[%emt 0:03:11]} Bg7 {[%emt 0:03:19]} 24. fxg5 {[%emt 0:02:41]} hxg5 {[%emt 0:04:48]} 25. Bxf5 {[%emt 0:05:36]} Rxd4 {[%emt 0:01:36]} 26. Rab1 {[%emt 0:04:12]} Bxf5 {[%emt 0:10:00]} 27. Rxf5 {[%emt 0:00:13]} Rd3 {[%emt 0:00:00]} 28. Nd1 {[%emt 0:00:21]} Rad8 {[%emt 0:00:04]} 29. Rf1 {[%emt 0:00:31]} Ne6 {[%emt 0:08:29]} 30. Kf2 {[%emt 0:05:06]} Ra3 {[%emt 0:01:00]} 31. a5 {[%emt 0:01:37]} f5 {[%emt 0:04:58]} 32. Kg1 {[%emt 0:01:27]} f4 {[%emt 0:01:28]} 33. Bf2 {[%emt 0:02:57]} Rd2 {[%emt 0:01:01]} 34. Be1 {[%emt 0:02:17]} Rc2 {[%emt 0:01:43]} 35. Kh1 {[%emt 0:00:59]} Bd4 {[%emt 0:01:43]} 36. Bf2 {[%emt 0:01:11]} Raa2 {[%emt 0:00:29]} 37. Kg1 {[%emt 0:01:16]} a6 {[%emt 0:01:09]} 38. Rb3 {[%emt 0:01:57]} Rd2 {[%emt 0:00:35]} 39. Rf3 {[%emt 0:01:45]} Ra1 {[%emt 0:04:22]} 40. Nc3 {[%emt 0:00:00]} Rxf1+ {[%emt 0:00:00]} 41. Kxf1 {[%emt 0:01:27]} Rxf2+ {[%emt 0:02:53]} 42. Rxf2 {[%emt 0:00:10]} Bxc3 {[%emt 0:00:14]} 43. Re2 {[%emt 0:01:49]} Kf7 {[%emt 0:00:28]} 44. Re4 {[%emt 0:00:35]} Kf6 {[%emt 0:01:30]} 45. Ke2 {[%emt 0:01:20]} Bd4 {[%emt 0:01:30]} 46. Kf3 {[%emt 0:01:54]} Kf5 {[%emt 0:00:29]} 47. Re1 {[%emt 0:00:49]} Bc3 {[%emt 0:00:16]} 48. Rb1 {[%emt 0:00:32]} Nd4+ {[%emt 0:00:23]} 49. Kf2 {[%emt 0:00:05]} Ke4 {[%emt 0:01:35]} 50. g3 {[%emt 0:01:03]} Nf5 {[%emt 0:02:44]} 51. gxf4 {[%emt 0:01:30]} gxf4 {[%emt 0:00:05]} 52. Rb3 {[%emt 0:03:00]} Bd4+ {[%emt 0:00:31]} 53. Kf1 {[%emt 0:00:45]} f3 {[%emt 0:00:18]} 0-1

[Event "EYCC Girls-U16 2019"]
[Site "Bratislava"]
[Date "2019.08.08"]
[Round "7.4"]
[White "Laurincova, Kristyna"]
[Black "Loskutova, Viktoriya"]
[Result "0-1"]
[ECO "B96"]
[WhiteElo "1981"]
[BlackElo "2019"]
[Annotator "NA"]
[PlyCount "82"]
[EventDate "2019.08.02"]
[EventType "swiss"]
[EventCountry "SVK"]
[SourceTitle "playchess.com"]
[Source "ChessBase"]
[SourceQuality "1"]
[TimeControl "40/5400+30:1800+30"]

1. e4 {[%emt 0:00:00]} c5 {[%emt 0:00:00]} 2. Nf3 {[%emt 0:00:00]} d6 {[%emt 0:00:00]} 3. d4 {[%emt 0:00:00]} cxd4 {[%emt 0:00:00]} 4. Nxd4 {[%emt 0:00:00]} Nf6 {[%emt 0:00:00]} 5. Nc3 {[%emt 0:00:00]} a6 {[%emt 0:00:00]} 6. Bg5 {[%emt 0:00:28]} e6 {[%emt 0:01:38]} 7. f4 {[%emt 0:00:28]} h6 {[%emt 0:00:43]} 8. Bh4 {[%emt 0:02:23]} Qb6 {[%emt 0:00:13]} 9. Qd2 {[%emt 0:20:21]} Qxb2 {[%emt 0:00:59]} 10. Rb1 {[%emt 0:00:08]} Qa3 {[%emt 0:00:05]} 11. f5 {[%emt 0:06:48]} Nc6 {[%emt 0:29:09]} 12. Be2 {[%emt 0:27:06]} Be7 {[%emt 0:06:54]} 13. fxe6 {[%emt 0:14:27]} fxe6 {[%emt 0:02:16]} 14. Nxc6 {[%emt 0:13:22]} bxc6 {[%emt 0:00:34]} 15. e5 {[%emt 0:00:29]} dxe5 {[%emt 0:29:47]} 16. Bxf6 {[%emt 0:00:06]} Bxf6 {[%emt 0:00:05]} 17. Bh5+ {[%emt 0:00:04]} Ke7 {[%emt 0:00:33]} 18. O-O {[%emt 0:05:21]} Qc5+ {[%emt 0:01:02]} 19. Kh1 {[%emt 0:01:43]} Rd8 {[%emt 0:00:10]} 20. Qe1 {[%emt 0:04:31]} e4 {[%emt 0:02:53]} 21. Bg6 {[%emt 0:01:18]} Qg5 {[%emt 0:11:33]} 22. Bxe4 {[%emt 0:00:07]} Qd2 {[%emt 0:03:19]} 23. Qxd2 {[%emt 0:00:49]} Rxd2 {[%emt 0:00:05]} 24. Bxc6 {[%emt 0:00:24]} Ra7 {[%emt 0:00:06]} 25. Ne4 {[%emt 0:01:34]} Rxc2 {[%emt 0:00:12]} 26. Nxf6 {[%emt 0:00:29]} gxf6 {[%emt 0:00:39]} 27. Rbc1 {[%emt 0:00:22]} Rxc1 {[%emt 0:02:44]} 28. Rxc1 {[%emt 0:00:00]} Rc7 {[%emt 0:00:44]} 29. Rc2 {[%emt 0:00:06]} Bb7 {[%emt 0:00:42]} 30. Ba4 {[%emt 0:00:07]} Rxc2 {[%emt 0:00:05]} 31. Bxc2 {[%emt 0:00:02]} Bd5 {[%emt 0:00:18]} 32. Bd3 {[%emt 0:00:31]} a5 {[%emt 0:00:12]} 33. a3 {[%emt 0:00:01]} Kd6 {[%emt 0:00:10]} 34. Kg1 {[%emt 0:00:17]} Kc5 {[%emt 0:00:11]} 35. Kf2 {[%emt 0:00:25]} Kd4 {[%emt 0:02:19]} 36. Bb5 {[%emt 0:00:56]} Kc3 {[%emt 0:00:34]} 37. Bd7 {[%emt 0:00:21]} e5 {[%emt 0:00:25]} 38. g4 {[%emt 0:00:52]} Kd2 {[%emt 0:00:14]} 39. h3 {[%emt 0:01:22]} e4 {[%emt 0:00:14]} 40. Bb5 {[%emt 0:00:00]} e3+ {[%emt 0:00:00]} 41. Kf1 {[%emt 0:00:23]} Bf3 {[%emt 0:00:14]} 0-1